[Event "Kvibergspelen 2022"]
[Site "Kviberg Park Hotel & Conference, Krutvagen 2, Gothenburg, Sweden"]
[Date "2022.09.30"]
[Round "3.6"]
[White "Stefansson, Vignir Vatnar"]
[Black "Borvander, Tom"]
[Result "1-0"]
[TimeControl "15 minutes + 5 seconds per move from move one (Round 1 - 4) / 90 minutes + 30 seconds per move from move one (Round 5 - 8)"]
[WhiteTitle "IM"]
[WhiteFideId "2308649"]
[BlackFideId "1707388"]
[WhiteElo "2452"]
[BlackElo "2098"]

1. d4 {[%clk 00:15:08]} {[%emt 00:00:01]} Nf6 {[%clk 00:15:09]} {[%emt
00:00:02]} 2. c4 {[%clk 00:15:12]} {[%emt 00:00:02]} g6 {[%clk 00:15:13]} 3.
Nc3 {[%clk 00:15:15]} Bg7 {[%clk 00:15:16]} {[%emt 00:00:01]} 4. e4 {[%clk
00:15:19]} {[%emt 00:00:01]} d6 {[%clk 00:15:21]} {[%emt 00:00:02]} 5. Be2
{[%clk 00:15:17]} {[%emt 00:00:06]} O-O {[%clk 00:15:23]} {[%emt 00:00:03]} 6.
Nf3 {[%clk 00:15:20]} {[%emt 00:00:01]} e5 {[%clk 00:15:23]} {[%emt 00:00:05]}
7. dxe5 {[%clk 00:15:24]} {[%emt 00:00:02]} dxe5 {[%clk 00:15:26]} {[%emt
00:00:02]} 8. Qxd8 {[%clk 00:15:28]} Rxd8 {[%clk 00:15:30]} {[%emt 00:00:02]} 9.
Bg5 {[%clk 00:15:31]} {[%emt 00:00:01]} Re8 {[%clk 00:15:28]} {[%emt 00:00:07]}
10. O-O-O {[%clk 00:15:33]} {[%emt 00:00:02]} h6 {[%clk 00:15:30]} {[%emt
00:00:04]} 11. Bh4 {[%clk 00:14:41]} {[%emt 00:00:57]} Na6 {[%clk 00:15:16]}
{[%emt 00:00:19]} 12. Ne1 {[%clk 00:13:54]} {[%emt 00:00:52]} Be6 {[%clk
00:14:52]} {[%emt 00:00:29]} 13. Nc2 {[%clk 00:13:48]} {[%emt 00:00:11]} c6
{[%clk 00:14:24]} {[%emt 00:00:33]} 14. f3 {[%clk 00:13:44]} {[%emt 00:00:08]}
Nh5 {[%clk 00:14:02]} {[%emt 00:00:28]} 15. Bf2 {[%clk 00:13:43]} {[%emt
00:00:05]} Bf8 {[%clk 00:13:48]} {[%emt 00:00:19]} 16. a3 {[%clk 00:12:54]}
{[%emt 00:00:55]} Nc5 {[%clk 00:13:32]} {[%emt 00:00:21]} 17. b4 {[%clk
00:12:56]} {[%emt 00:00:03]} Nd7 {[%clk 00:13:24]} {[%emt 00:00:13]} 18. g3
{[%clk 00:12:43]} {[%emt 00:00:19]} a5 {[%clk 00:13:23]} {[%emt 00:00:05]} 19.
Kb2 {[%clk 00:12:32]} {[%emt 00:00:16]} Nhf6 {[%clk 00:12:04]} {[%emt
00:01:24]} 20. Rd2 {[%clk 00:12:33]} {[%emt 00:00:04]} axb4 {[%clk 00:11:15]}
{[%emt 00:00:54]} 21. axb4 {[%clk 00:12:36]} {[%emt 00:00:02]} c5 {[%clk
00:11:16]} {[%emt 00:00:04]} 22. b5 {[%clk 00:11:18]} {[%emt 00:01:23]} Nb6
{[%clk 00:11:16]} {[%emt 00:00:05]} 23. Kb3 {[%clk 00:11:20]} {[%emt 00:00:02]}
Ra5 {[%clk 00:10:58]} {[%emt 00:00:22]} 24. Ra1 {[%clk 00:11:23]} {[%emt
00:00:04]} Rea8 {[%clk 00:11:01]} {[%emt 00:00:03]} 25. Rxa5 {[%clk 00:11:26]}
Rxa5 {[%clk 00:11:05]} {[%emt 00:00:01]} 26. Rd1 {[%clk 00:10:54]} {[%emt
00:00:37]} Be7 {[%clk 00:10:48]} {[%emt 00:00:22]} 27. Be1 {[%clk 00:10:11]}
{[%emt 00:00:48]} Ra8 {[%clk 00:10:42]} {[%emt 00:00:11]} 28. Ne3 {[%clk
00:10:12]} {[%emt 00:00:04]} Kg7 {[%clk 00:10:21]} {[%emt 00:00:26]} 29. f4
{[%clk 00:10:13]} {[%emt 00:00:04]} exf4 {[%clk 00:09:31]} {[%emt 00:00:55]} 30.
gxf4 {[%clk 00:10:16]} {[%emt 00:00:02]} h5 {[%clk 00:08:37]} {[%emt 00:00:59]}
31. f5 {[%clk 00:09:58]} {[%emt 00:00:23]} gxf5 {[%clk 00:08:35]} {[%emt
00:00:07]} 32. exf5 {[%clk 00:10:01]} {[%emt 00:00:01]} Bc8 {[%clk 00:08:30]}
{[%emt 00:00:11]} 33. Bg3 {[%clk 00:09:58]} {[%emt 00:00:08]} Nbd7 {[%clk
00:08:16]} {[%emt 00:00:20]} 34. Bf3 {[%clk 00:09:54]} {[%emt 00:00:08]} Ng4
{[%clk 00:07:04]} {[%emt 00:01:17]} 35. Nxg4 {[%clk 00:08:57]} {[%emt
00:01:02]} hxg4 {[%clk 00:07:07]} 36. Bxg4 {[%clk 00:09:01]} {[%emt 00:00:01]}
Bf6 {[%clk 00:07:04]} {[%emt 00:00:09]} 37. Ne4 {[%clk 00:08:52]} {[%emt
00:00:14]} b6 {[%clk 00:07:00]} {[%emt 00:00:09]} 38. Nxf6 {[%clk 00:08:41]}
{[%emt 00:00:16]} Kxf6 {[%clk 00:06:23]} {[%emt 00:00:42]} 39. Rd6+ {[%clk
00:08:45]} {[%emt 00:00:01]} Kg5 {[%clk 00:06:22]} {[%emt 00:00:06]} 40. h3
{[%clk 00:08:45]} {[%emt 00:00:05]} Nf6 {[%clk 00:06:14]} {[%emt 00:00:13]} 41.
Bh4+ {[%clk 00:08:48]} {[%emt 00:00:02]} Kxh4 {[%clk 00:06:15]} {[%emt
00:00:04]} 42. Rxf6 {[%clk 00:08:51]} Ra1 {[%clk 00:06:04]} {[%emt 00:00:17]}
43. Rxb6 {[%clk 00:08:48]} {[%emt 00:00:07]} Rf1 {[%clk 00:05:56]} {[%emt
00:00:14]} 44. Rf6 {[%clk 00:08:49]} {[%emt 00:00:05]} Bb7 {[%clk 00:05:52]}
{[%emt 00:00:08]} 45. Rxf7 {[%clk 00:08:49]} {[%emt 00:00:05]} Be4 {[%clk
00:05:56]} {[%emt 00:00:01]} 46. Re7 {[%clk 00:08:45]} {[%emt 00:00:09]} Bd3
{[%clk 00:05:23]} {[%emt 00:00:38]} 47. Re5 {[%clk 00:08:45]} {[%emt 00:00:04]}
Rb1+ {[%clk 00:05:02]} {[%emt 00:00:26]} 48. Kc3 {[%clk 00:08:49]} {[%emt
00:00:02]} 1-0

[Event "Kvibergspelen 2022"]
[Site "Kviberg Park Hotel & Conference, Krutvagen 2, Gothenburg, Sweden"]
[Date "2022.09.30"]
[Round "3.7"]
[White "Golubka, Petro"]
[Black "Lyngsjo, Hakan"]
[Result "1/2-1/2"]
[TimeControl "15 minutes + 5 seconds per move from move one (Round 1 - 4) / 90 minutes + 30 seconds per move from move one (Round 5 - 8)"]
[WhiteTitle "GM"]
[WhiteFideId "14114224"]
[BlackFideId "1701649"]
[WhiteElo "2360"]
[BlackElo "2007"]

1. d4 {[%clk 00:15:08]} Nf6 {[%clk 00:15:07]} {[%emt 00:00:04]} 2. Nc3 {[%clk
00:15:11]} {[%emt 00:00:02]} d5 {[%clk 00:15:01]} {[%emt 00:00:12]} 3. Bg5
{[%clk 00:15:14]} {[%emt 00:00:01]} Ne4 {[%clk 00:13:44]} {[%emt 00:01:22]} 4.
Nxe4 {[%clk 00:15:17]} {[%emt 00:00:02]} dxe4 {[%clk 00:13:47]} {[%emt
00:00:02]} 5. c3 {[%clk 00:15:19]} {[%emt 00:00:02]} h6 {[%clk 00:13:01]}
{[%emt 00:00:52]} 6. Bf4 {[%clk 00:15:22]} {[%emt 00:00:02]} Bf5 {[%clk
00:12:52]} {[%emt 00:00:14]} 7. Qb3 {[%clk 00:15:22]} {[%emt 00:00:05]} Qc8
{[%clk 00:12:30]} {[%emt 00:00:28]} 8. e3 {[%clk 00:15:24]} {[%emt 00:00:03]}
Nd7 {[%clk 00:12:18]} {[%emt 00:00:16]} 9. Bc4 {[%clk 00:15:08]} {[%emt
00:00:21]} e6 {[%clk 00:12:17]} {[%emt 00:00:06]} 10. Ne2 {[%clk 00:15:05]}
{[%emt 00:00:08]} Nb6 {[%clk 00:12:20]} {[%emt 00:00:02]} 11. Ng3 {[%clk
00:15:07]} {[%emt 00:00:03]} Nxc4 {[%clk 00:11:59]} {[%emt 00:00:27]} 12. Qxc4
{[%clk 00:15:10]} {[%emt 00:00:01]} Bd6 {[%clk 00:11:17]} {[%emt 00:00:48]} 13.
Bxd6 {[%clk 00:14:23]} {[%emt 00:00:52]} cxd6 {[%clk 00:11:20]} {[%emt
00:00:01]} 14. Qxc8+ {[%clk 00:14:26]} {[%emt 00:00:01]} Rxc8 {[%clk 00:11:24]}
{[%emt 00:00:02]} 15. Kd2 {[%clk 00:14:29]} {[%emt 00:00:02]} Kd7 {[%clk
00:10:59]} {[%emt 00:00:30]} 16. Rhc1 {[%clk 00:14:29]} {[%emt 00:00:05]} Rc7
{[%clk 00:10:31]} {[%emt 00:00:33]} 17. b3 {[%clk 00:14:30]} {[%emt 00:00:05]}
Rhc8 {[%clk 00:10:31]} {[%emt 00:00:04]} 18. c4 {[%clk 00:14:34]} Bg6 {[%clk
00:09:56]} {[%emt 00:00:40]} 19. h4 {[%clk 00:14:36]} {[%emt 00:00:03]} f6
{[%clk 00:09:47]} {[%emt 00:00:14]} 20. h5 {[%clk 00:13:55]} {[%emt 00:00:46]}
Be8 {[%clk 00:09:51]} {[%emt 00:00:01]} 21. a4 {[%clk 00:13:39]} {[%emt
00:00:21]} Ke7 {[%clk 00:09:23]} {[%emt 00:00:33]} 22. a5 {[%clk 00:13:42]}
{[%emt 00:00:03]} f5 {[%clk 00:08:54]} {[%emt 00:00:34]} 23. a6 {[%clk
00:12:17]} {[%emt 00:01:30]} b6 {[%clk 00:08:54]} {[%emt 00:00:05]} 24. d5
{[%clk 00:12:17]} {[%emt 00:00:05]} Kf6 {[%clk 00:08:36]} {[%emt 00:00:22]} 25.
dxe6 {[%clk 00:12:20]} {[%emt 00:00:02]} Kxe6 {[%clk 00:08:40]} {[%emt
00:00:01]} 26. Ne2 {[%clk 00:12:23]} {[%emt 00:00:02]} Ke5 {[%clk 00:08:26]}
{[%emt 00:00:19]} 27. Nf4 {[%clk 00:12:23]} {[%emt 00:00:06]} Bf7 {[%clk
00:08:11]} {[%emt 00:00:19]} 28. f3 {[%clk 00:12:01]} {[%emt 00:00:27]} d5
{[%clk 00:07:55]} {[%emt 00:00:22]} 29. cxd5 {[%clk 00:10:48]} {[%emt
00:01:17]} Rxc1 {[%clk 00:07:55]} {[%emt 00:00:06]} 30. Rxc1 {[%clk 00:10:52]}
Rxc1 {[%clk 00:07:58]} 31. Kxc1 {[%clk 00:10:56]} {[%emt 00:00:01]} Bxd5 {[%clk
00:08:02]} 32. Nxd5 {[%clk 00:06:42]} {[%emt 00:04:19]} Kxd5 {[%clk 00:08:04]}
{[%emt 00:00:03]} 33. Kd2 {[%clk 00:06:41]} {[%emt 00:00:06]} Kc6 {[%clk
00:05:18]} {[%emt 00:02:51]} 34. Kc3 {[%clk 00:05:46]} {[%emt 00:01:00]} Kc5
{[%clk 00:05:22]} {[%emt 00:00:02]} 35. f4 {[%clk 00:03:52]} {[%emt 00:01:58]}
Kb5 {[%clk 00:05:01]} {[%emt 00:00:26]} 36. Kd4 {[%clk 00:03:52]} {[%emt
00:00:05]} Kb4 {[%clk 00:04:51]} {[%emt 00:00:14]} 37. Kd5 {[%clk 00:03:36]}
{[%emt 00:00:22]} Kxb3 {[%clk 00:04:08]} {[%emt 00:00:49]} 38. Kc6 {[%clk
00:03:39]} Kc4 {[%clk 00:04:02]} {[%emt 00:00:11]} 39. Kb7 {[%clk 00:03:43]}
{[%emt 00:00:01]} b5 {[%clk 00:04:06]} {[%emt 00:00:01]} 40. Kxa7 {[%clk
00:03:47]} {[%emt 00:00:02]} b4 {[%clk 00:04:10]} 41. Kb7 {[%clk 00:03:41]}
{[%emt 00:00:10]} b3 {[%clk 00:04:13]} {[%emt 00:00:02]} 42. a7 {[%clk
00:03:45]} b2 {[%clk 00:04:17]} 43. a8=Q {[%clk 00:03:48]} {[%emt 00:00:02]}
b1=Q+ {[%clk 00:04:19]} {[%emt 00:00:03]} 44. Kc7 {[%clk 00:03:36]} {[%emt
00:00:18]} Kd3 {[%clk 00:03:57]} {[%emt 00:00:26]} 45. Qa3+ {[%clk 00:03:35]}
{[%emt 00:00:07]} Ke2 {[%clk 00:03:55]} {[%emt 00:00:07]} 46. Qc3 {[%clk
00:03:28]} {[%emt 00:00:12]} Qd3 {[%clk 00:03:40]} {[%emt 00:00:19]} 47. Qxg7
{[%clk 00:03:30]} {[%emt 00:00:03]} 1/2-1/2

[Event "Kvibergspelen 2022"]
[Site "Kviberg Park Hotel & Conference, Krutvagen 2, Gothenburg, Sweden"]
[Date "2022.09.30"]
[Round "3.8"]
[White "Grahn, Vidar"]
[Black "Hamark, Jesper"]
[Result "0-1"]
[TimeControl "15 minutes + 5 seconds per move from move one (Round 1 - 4) / 90 minutes + 30 seconds per move from move one (Round 5 - 8)"]
[WhiteFideId "1744780"]
[BlackFideId "1704338"]
[WhiteElo "2054"]
[BlackElo "2348"]

1. e4 {[%clk 00:15:08]} {[%emt 00:00:02]} c5 {[%clk 00:15:09]} {[%emt
00:00:01]} 2. Nf3 {[%clk 00:15:09]} {[%emt 00:00:04]} g6 {[%clk 00:15:13]}
{[%emt 00:00:02]} 3. c3 {[%clk 00:15:10]} {[%emt 00:00:03]} d5 {[%clk
00:15:13]} {[%emt 00:00:04]} 4. exd5 {[%clk 00:14:58]} {[%emt 00:00:18]} Qxd5
{[%clk 00:15:16]} {[%emt 00:00:01]} 5. d4 {[%clk 00:14:58]} {[%emt 00:00:05]}
Nc6 {[%clk 00:15:20]} 6. Be3 {[%clk 00:14:15]} {[%emt 00:00:49]} Bg7 {[%clk
00:15:24]} 7. Na3 {[%clk 00:12:43]} {[%emt 00:01:37]} cxd4 {[%clk 00:14:55]}
{[%emt 00:00:34]} 8. Bc4 {[%clk 00:12:21]} {[%emt 00:00:26]} Qd8 {[%clk
00:13:56]} {[%emt 00:01:05]} 9. Nxd4 {[%clk 00:11:43]} {[%emt 00:00:43]} Nxd4
{[%clk 00:13:49]} {[%emt 00:00:11]} 10. Bxd4 {[%clk 00:11:12]} {[%emt
00:00:36]} Bxd4 {[%clk 00:13:50]} {[%emt 00:00:05]} 11. Bb5+ {[%clk 00:11:09]}
{[%emt 00:00:08]} Kf8 {[%clk 00:13:13]} {[%emt 00:00:42]} 12. Qxd4 {[%clk
00:10:29]} {[%emt 00:00:45]} Qxd4 {[%clk 00:13:10]} {[%emt 00:00:07]} 13. cxd4
{[%clk 00:10:33]} Nf6 {[%clk 00:13:08]} {[%emt 00:00:08]} 14. Rc1 {[%clk
00:10:11]} {[%emt 00:00:27]} Be6 {[%clk 00:12:39]} {[%emt 00:00:34]} 15. Rc7
{[%clk 00:09:55]} {[%emt 00:00:20]} Nd5 {[%clk 00:11:09]} {[%emt 00:01:36]} 16.
Rc5 {[%clk 00:09:40]} {[%emt 00:00:20]} b6 {[%clk 00:09:58]} {[%emt 00:01:17]}
17. Rc1 {[%clk 00:06:59]} {[%emt 00:02:44]} Kg7 {[%clk 00:10:02]} {[%emt
00:00:02]} 18. O-O {[%clk 00:06:54]} {[%emt 00:00:10]} Rac8 {[%clk 00:09:44]}
{[%emt 00:00:23]} 19. Bc4 {[%clk 00:04:59]} {[%emt 00:01:59]} Rhd8 {[%clk
00:07:50]} {[%emt 00:02:00]} 20. b3 {[%clk 00:03:25]} {[%emt 00:01:39]} Nf4
{[%clk 00:07:13]} {[%emt 00:00:42]} 21. Rcd1 {[%clk 00:02:23]} {[%emt
00:01:07]} Bxc4 {[%clk 00:06:48]} {[%emt 00:00:30]} 22. Nxc4 {[%clk 00:01:49]}
{[%emt 00:00:40]} Ne2+ {[%clk 00:06:51]} {[%emt 00:00:02]} 23. Kh1 {[%clk
00:01:53]} Nxd4 {[%clk 00:06:54]} {[%emt 00:00:02]} 24. g3 {[%clk 00:01:23]}
{[%emt 00:00:35]} Kf6 {[%clk 00:06:13]} {[%emt 00:00:46]} 25. Kg2 {[%clk
00:01:11]} {[%emt 00:00:17]} b5 {[%clk 00:05:50]} {[%emt 00:00:28]} 26. Ne3
{[%clk 00:01:15]} {[%emt 00:00:02]} e6 {[%clk 00:05:49]} {[%emt 00:00:05]} 27.
Rd2 {[%clk 00:00:53]} {[%emt 00:00:27]} Ke7 {[%clk 00:05:03]} {[%emt 00:00:51]}
28. Rfd1 {[%clk 00:00:52]} {[%emt 00:00:06]} Nc6 {[%clk 00:05:06]} {[%emt
00:00:02]} 29. Ng4 {[%clk 00:00:48]} {[%emt 00:00:09]} Rxd2 {[%clk 00:04:55]}
{[%emt 00:00:16]} 30. Rxd2 {[%clk 00:00:53]} Rd8 {[%clk 00:04:30]} {[%emt
00:00:30]} 31. Rc2 {[%clk 00:00:57]} Rd6 {[%clk 00:04:06]} {[%emt 00:00:29]} 32.
Ne3 {[%clk 00:00:29]} {[%emt 00:00:33]} Kd7 {[%clk 00:04:07]} {[%emt 00:00:03]}
33. a4 {[%clk 00:00:27]} {[%emt 00:00:08]} Nd4 {[%clk 00:03:28]} {[%emt
00:00:43]} 34. Rc3 {[%clk 00:00:17]} {[%emt 00:00:14]} a6 {[%clk 00:03:33]}
{[%emt 00:00:02]} 35. axb5 {[%clk 00:00:08]} {[%emt 00:00:14]} axb5 {[%clk
00:03:37]} 36. Rc5 {[%clk 00:00:07]} {[%emt 00:00:05]} Rc6 {[%emt 00:00:38]} 37.
Re5 {[%clk 00:00:00]} 0-1

[Event "Kvibergspelen 2022"]
[Site "Kviberg Park Hotel & Conference, Krutvagen 2, Gothenburg, Sweden"]
[Date "2022.09.30"]
[Round "3.9"]
[White "Mohammadi, Amir"]
[Black "Kashwan, Hassan"]
[Result "0-1"]
[TimeControl "15 minutes + 5 seconds per move from move one (Round 1 - 4) / 90 minutes + 30 seconds per move from move one (Round 5 - 8)"]
[WhiteFideId "1705890"]
[BlackFideId "137122555"]
[WhiteElo "2294"]
[BlackElo "1902"]

1. e4 {[%emt 00:01:59]} c5 {[%clk 00:13:01]} {[%emt 00:00:13]} 2. Nc3 {[%clk
00:15:10]} {[%emt 00:00:03]} Nc6 {[%clk 00:12:58]} {[%emt 00:00:08]} 3. g3
{[%clk 00:15:13]} {[%emt 00:00:02]} Nf6 {[%clk 00:12:50]} {[%emt 00:00:13]} 4.
Bg2 {[%clk 00:15:15]} {[%emt 00:00:02]} d6 {[%clk 00:12:47]} {[%emt 00:00:08]}
5. d3 {[%clk 00:15:16]} {[%emt 00:00:04]} h6 {[%clk 00:12:39]} {[%emt
00:00:13]} 6. h3 {[%clk 00:15:06]} {[%emt 00:00:15]} e5 {[%clk 00:12:31]}
{[%emt 00:00:14]} 7. Be3 {[%clk 00:15:02]} {[%emt 00:00:09]} Be7 {[%clk
00:12:22]} {[%emt 00:00:14]} 8. f4 {[%clk 00:15:01]} {[%emt 00:00:06]} Nd4
{[%clk 00:11:05]} {[%emt 00:01:22]} 9. Nf3 {[%clk 00:14:48]} {[%emt 00:00:17]}
Nh5 {[%clk 00:10:29]} {[%emt 00:00:41]} 10. Bf2 {[%clk 00:11:04]} {[%emt
00:03:48]} exf4 {[%clk 00:10:15]} {[%emt 00:00:20]} 11. Nxd4 {[%clk 00:10:42]}
{[%emt 00:00:28]} cxd4 {[%clk 00:09:49]} {[%emt 00:00:31]} 12. Qxh5 {[%clk
00:09:38]} {[%emt 00:01:09]} dxc3 {[%clk 00:09:43]} {[%emt 00:00:11]} 13. gxf4
{[%clk 00:07:30]} {[%emt 00:02:13]} cxb2 {[%clk 00:09:35]} {[%emt 00:00:13]} 14.
Qb5+ {[%clk 00:07:33]} {[%emt 00:00:02]} Bd7 {[%clk 00:09:34]} {[%emt
00:00:06]} 15. Qxb2 {[%clk 00:07:35]} {[%emt 00:00:02]} Bf6 {[%clk 00:09:25]}
{[%emt 00:00:14]} 16. Bd4 {[%clk 00:06:27]} {[%emt 00:01:14]} Qa5+ {[%clk
00:08:59]} {[%emt 00:00:30]} 17. Ke2 {[%clk 00:06:06]} {[%emt 00:00:25]} Bxd4
{[%clk 00:08:25]} {[%emt 00:00:40]} 18. Qxd4 {[%clk 00:06:10]} {[%emt
00:00:01]} O-O {[%clk 00:08:04]} {[%emt 00:00:26]} 19. Bf3 {[%clk 00:06:09]}
{[%emt 00:00:05]} Rac8 {[%clk 00:07:51]} {[%emt 00:00:17]} 20. c4 {[%clk
00:05:31]} {[%emt 00:00:45]} b5 {[%clk 00:06:28]} {[%emt 00:01:28]} 21. Rhg1
{[%clk 00:05:33]} {[%emt 00:00:02]} f6 {[%clk 00:06:27]} {[%emt 00:00:07]} 22.
Qxd6 {[%clk 00:04:36]} {[%emt 00:01:02]} bxc4 {[%clk 00:04:55]} {[%emt
00:01:37]} 23. Qxd7 {[%clk 00:03:47]} {[%emt 00:00:53]} cxd3+ {[%clk 00:04:54]}
{[%emt 00:00:06]} 24. Ke3 {[%clk 00:03:50]} {[%emt 00:00:02]} Qc5+ {[%clk
00:03:46]} {[%emt 00:01:14]} 25. Qd4 {[%emt 00:00:17]} Qa3 {[%clk 00:03:37]} 26.
Bd1 {[%clk 00:00:15]} {[%emt 00:03:41]} d2+ {[%clk 00:03:14]} {[%emt 00:00:27]}
27. Bb3+ {[%clk 00:00:19]} {[%emt 00:00:03]} Kh8 {[%clk 00:03:09]} {[%emt
00:00:08]} 28. Rad1 {[%clk 00:00:22]} {[%emt 00:00:04]} Rcd8 {[%clk 00:03:00]}
{[%emt 00:00:12]} 29. Qc4 {[%clk 00:00:23]} {[%emt 00:00:05]} Qa5 {[%clk
00:02:47]} {[%emt 00:00:19]} 30. Rg2 {[%clk 00:00:21]} {[%emt 00:00:07]} Qb6+
{[%clk 00:02:45]} {[%emt 00:00:06]} 31. Kf3 {[%clk 00:00:25]} {[%emt 00:00:02]}
Rd4 {[%clk 00:02:38]} {[%emt 00:00:12]} 32. Qe6 {[%clk 00:00:20]} {[%emt
00:00:10]} Rd3+ {[%clk 00:02:34]} {[%emt 00:00:07]} 33. Kg4 {[%clk 00:00:24]}
{[%emt 00:00:02]} Qe3 {[%clk 00:02:30]} {[%emt 00:00:09]} 34. Kh4 {[%clk
00:00:22]} {[%emt 00:00:08]} Qxf4+ {[%clk 00:02:04]} {[%emt 00:00:31]} 35. Qg4
{[%clk 00:00:26]} {[%emt 00:00:01]} Qg5+ {[%clk 00:01:45]} {[%emt 00:00:23]} 36.
Qxg5 {[%clk 00:00:29]} {[%emt 00:00:03]} fxg5+ {[%clk 00:01:49]} 37. Kh5 {[%clk
00:00:10]} {[%emt 00:00:25]} Rxh3+ {[%clk 00:01:49]} {[%emt 00:00:04]} 38. Kg4
{[%clk 00:00:14]} Re3 {[%clk 00:01:18]} {[%emt 00:00:36]} 39. Rg3 {[%clk
00:00:10]} {[%emt 00:00:09]} Rf4+ {[%clk 00:01:16]} {[%emt 00:00:08]} 40. Kh3
{[%clk 00:00:14]} Rh4+ {[%clk 00:01:12]} {[%emt 00:00:09]} 41. Kg2 {[%clk
00:00:18]} Re2+ {[%clk 00:00:49]} {[%emt 00:00:27]} 42. Kf3 {[%clk 00:00:19]}
{[%emt 00:00:04]} Rhxe4 {[%clk 00:00:43]} {[%emt 00:00:11]} 43. Bc2 {[%clk
00:00:08]} {[%emt 00:00:17]} R4e3+ {[%clk 00:00:45]} {[%emt 00:00:03]} 44. Kg4
{[%clk 00:00:12]} h5+ {[%clk 00:00:48]} 45. Kh3 {[%clk 00:00:14]} {[%emt
00:00:03]} g4+ {[%clk 00:00:50]} {[%emt 00:00:04]} 46. Kh4 {[%clk 00:00:16]}
{[%emt 00:00:03]} Rh2+ {[%clk 00:00:53]} {[%emt 00:00:03]} 47. Kg5 {[%clk
00:00:13]} {[%emt 00:00:08]} Rxg3 {[%clk 00:00:57]} 48. Rb1 {[%clk 00:00:10]}
{[%emt 00:00:09]} Kg8 {[%clk 00:00:18]} {[%emt 00:00:44]} 0-1

[Event "Kvibergspelen 2022"]
[Site "Kviberg Park Hotel & Conference, Krutvagen 2, Gothenburg, Sweden"]
[Date "2022.09.30"]
[Round "3.10"]
[White "Lindholm, Gustav"]
[Black "Olsson, William"]
[Result "0-1"]
[TimeControl "15 minutes + 5 seconds per move from move one (Round 1 - 4) / 90 minutes + 30 seconds per move from move one (Round 5 - 8)"]
[BlackTitle "FM"]
[WhiteFideId "1736515"]
[BlackFideId "1741721"]
[WhiteElo "2026"]
[BlackElo "2288"]

1. d4 {[%clk 00:15:08]} {[%emt 00:00:03]} d5 {[%clk 00:15:09]} 2. c4 {[%clk
00:15:11]} {[%emt 00:00:01]} c6 {[%clk 00:15:13]} 3. Nf3 {[%clk 00:15:15]}
{[%emt 00:00:02]} Nf6 {[%clk 00:15:18]} 4. Nc3 {[%clk 00:15:18]} {[%emt
00:00:02]} e6 {[%clk 00:15:21]} 5. Bg5 {[%clk 00:15:17]} {[%emt 00:00:06]} h6
{[%clk 00:15:24]} {[%emt 00:00:01]} 6. Bh4 {[%clk 00:15:06]} {[%emt 00:00:16]}
dxc4 {[%clk 00:15:26]} {[%emt 00:00:04]} 7. e4 {[%clk 00:15:07]} {[%emt
00:00:03]} g5 {[%clk 00:15:30]} {[%emt 00:00:02]} 8. Bg3 {[%clk 00:15:11]}
{[%emt 00:00:01]} b5 {[%clk 00:15:33]} {[%emt 00:00:02]} 9. e5 {[%clk
00:14:57]} {[%emt 00:00:19]} Nd5 {[%clk 00:15:27]} {[%emt 00:00:11]} 10. Nd2
{[%clk 00:14:20]} {[%emt 00:00:42]} Nd7 {[%clk 00:14:29]} {[%emt 00:01:03]} 11.
h4 {[%clk 00:14:13]} {[%emt 00:00:13]} Bb4 {[%clk 00:11:46]} {[%emt 00:02:47]}
12. Nde4 {[%clk 00:12:21]} {[%emt 00:01:57]} Rg8 {[%clk 00:08:04]} {[%emt
00:03:48]} 13. hxg5 {[%clk 00:11:40]} {[%emt 00:00:45]} hxg5 {[%clk 00:08:06]}
{[%emt 00:00:03]} 14. Rh7 {[%clk 00:11:03]} {[%emt 00:00:41]} Nf8 {[%clk
00:07:10]} {[%emt 00:01:02]} 15. Rh5 {[%clk 00:09:09]} {[%emt 00:01:58]} Bb7
{[%clk 00:06:20]} {[%emt 00:00:57]} 16. Qg4 {[%clk 00:06:44]} {[%emt 00:02:28]}
Qa5 {[%clk 00:04:00]} {[%emt 00:02:26]} 17. Rxg5 {[%clk 00:02:39]} {[%emt
00:04:10]} Rxg5 {[%clk 00:04:03]} {[%emt 00:00:02]} 18. Qxg5 {[%clk 00:02:35]}
{[%emt 00:00:09]} Be7 {[%clk 00:03:59]} {[%emt 00:00:10]} 19. Qd2 {[%clk
00:02:06]} {[%emt 00:00:34]} b4 {[%clk 00:03:19]} {[%emt 00:00:44]} 20. Nxd5
{[%clk 00:01:00]} {[%emt 00:01:11]} cxd5 {[%clk 00:03:20]} {[%emt 00:00:04]} 21.
Nf6+ {[%clk 00:00:56]} {[%emt 00:00:09]} Bxf6 {[%clk 00:03:23]} {[%emt
00:00:02]} 22. exf6 {[%clk 00:01:00]} Qb6 {[%clk 00:01:43]} {[%emt 00:01:46]}
23. Be2 {[%clk 00:00:30]} {[%emt 00:00:34]} a5 {[%clk 00:01:40]} {[%emt
00:00:08]} 24. Bh5 {[%clk 00:00:18]} {[%emt 00:00:17]} Ra7 {[%clk 00:00:58]}
{[%emt 00:00:47]} 25. Qf4 {[%clk 00:00:15]} {[%emt 00:00:08]} Ba6 {[%clk
00:01:01]} {[%emt 00:00:02]} 26. Rc1 {[%clk 00:00:07]} {[%emt 00:00:13]} Rb7
{[%clk 00:00:48]} {[%emt 00:00:18]} 27. Qg4 {[%clk 00:00:07]} {[%emt 00:00:05]}
b3 {[%clk 00:00:21]} {[%emt 00:00:32]} 28. a3 {[%clk 00:00:10]} {[%emt
00:00:02]} Rd7 {[%clk 00:00:14]} {[%emt 00:00:12]} 29. Rc3 {[%clk 00:00:10]}
{[%emt 00:00:05]} Bc8 {[%emt 00:00:10]} 30. Re3 {[%clk 00:00:14]} Rb7 {[%clk
00:00:08]} {[%emt 00:00:07]} 31. Bf4 {[%clk 00:00:08]} {[%emt 00:00:11]} Qxd4
{[%clk 00:00:09]} {[%emt 00:00:04]} 0-1